bitfinex/quotes_BTCUSD_20241022
["timestamp","ask_amount","ask_price","bid_price","bid_amount"]
[1729599405230,0.35696391,67417.0,67416.0,0.16461115]
[1729599405446,0.35696391,67417.0,67416.0,0.16161115]
[1729599405671,0.35696391,67417.0,67416.0,0.17261115]
[1729599406340,0.248716,67417.0,67416.0,0.17261115]
[1729599416415,0.225716,67417.0,67416.0,0.17261115]
[1729599417345,0.225716,67417.0,67416.0,0.18101827]
[1729599419932,0.149116,67417.0,67416.0,0.18101827]
[1729599426939,0.149116,67417.0,67416.0,0.17983843]
[1729599428753,0.24130455,67417.0,67416.0,0.17983843]
[1729599428985,0.54110455,67417.0,67416.0,0.03205912]
[1729599429204,0.54110455,67417.0,67416.0,0.023652]
[1729599429414,0.60755008,67417.0,67416.0,0.023652]
[1729599429852,0.79319574,67417.0,67416.0,0.012652]
[1729599430086,0.79319574,67417.0,67416.0,0.003652]
[1729599430341,0.79318141,67417.0,67416.0,0.003652]
[1729599430560,0.70659984,67417.0,67416.0,0.003652]
[1729599430796,0.70459984,67417.0,67416.0,0.001652]
[1729599431027,0.70759984,67417.0,67416.0,0.001652]
[1729599431477,0.70659984,67417.0,67416.0,0.001652]
[1729599431694,0.70759984,67417.0,67416.0,0.001652]
[1729599431913,0.70659984,67417.0,67416.0,0.001652]
[1729599432128,0.70459984,67417.0,67416.0,0.001652]
[1729599432339,0.70859984,67417.0,67416.0,0.001652]
[1729599433225,0.81919987,67417.0,67416.0,0.001652]
[1729599433445,0.81719987,67417.0,67416.0,0.002652]
[1729599433920,0.82119987,67417.0,67416.0,0.002652]
[1729599435278,0.71059984,67417.0,67416.0,0.002652]
[1729599437092,0.82119987,67417.0,67416.0,0.002652]
[1729599437307,0.71059984,67417.0,67416.0,0.002652]
[1729599437522,0.82119987,67417.0,67416.0,0.002652]
[1729599438228,0.71059984,67417.0,67416.0,0.002652]
[1729599438652,0.82119987,67417.0,67416.0,0.002652]
[1729599439320,0.71036708,67417.0,67416.0,0.002652]
[1729599439549,0.82093641,67417.0,67416.0,0.002652]
[1729599441124,0.71036708,67417.0,67416.0,0.002652]
[1729599441784,0.82093641,67417.0,67416.0,0.002652]
[1729599442007,0.82293641,67417.0,67416.0,0.002652]
[1729599442227,0.82093641,67417.0,67416.0,0.002652]
[1729599443349,0.61817853,67417.0,67416.0,0.002652]
[1729599443585,0.81491292,67417.0,67416.0,0.002652]
[1729599444284,0.81491292,67417.0,67416.0,0.001652]
[1729599444285,0.80891292,67417.0,67416.0,0.001652]
[1729599444711,0.81391292,67417.0,67416.0,0.001652]
[1729599448868,0.56216391,67417.0,67416.0,0.001652]
[1729599449110,0.94111735,67417.0,67416.0,0.001652]
[1729599449780,0.94113261,67417.0,67416.0,0.001652]
[1729599449986,0.85264526,67417.0,67416.0,0.001652]
[1729599454096,0.023,67415.0,67410.0,0.02322379]
[1729599454329,0.023,67415.0,67410.0,7.9e-07]
[1729599454330,0.66790894,67411.0,67410.0,7.9e-07]
[1729599454559,0.66790894,67411.0,67396.0,0.22437742]
[1729599454560,0.0916,67405.0,67396.0,0.22437742]
[1729599454789,0.271374,67397.0,67396.0,0.22437742]
[1729599455011,0.346374,67397.0,67396.0,0.22437742]
[1729599455225,0.69778973,67397.0,67396.0,0.001652]
[1729599456793,0.58954182,67397.0,67396.0,0.001652]
[1729599457452,0.59254182,67397.0,67396.0,0.001652]
[1729599457684,0.59554182,67397.0,67396.0,0.001652]
[1729599460362,0.60161962,67397.0,67396.0,0.001652]
[1729599460807,0.70986753,67397.0,67396.0,0.001652]
[1729599462497,0.85339701,67397.0,67396.0,0.001652]
[1729599462718,0.273378,67395.0,67393.0,0.001652]
[1729599463621,0.271378,67395.0,67393.0,0.001652]
[1729599463846,0.31560695,67395.0,67393.0,0.001652]
[1729599464244,0.31860695,67395.0,67393.0,0.001652]
[1729599464911,0.53510277,67395.0,67393.0,0.001652]
[1729599465123,0.68406192,67395.0,67393.0,0.001652]
[1729599466321,0.63983297,67395.0,67393.0,0.001652]
[1729599470309,0.64183297,67395.0,67393.0,0.001652]
[1729599470529,0.42533715,67395.0,67393.0,0.001652]
[1729599470740,0.64183297,67395.0,67393.0,0.001652]
[1729599472361,0.64183297,67395.0,67394.0,0.501652]
[1729599472569,0.64183297,67395.0,67394.0,0.51060151]
[1729599473522,0.73095297,67395.0,67394.0,0.51060151]
[1729599473749,0.64183297,67395.0,67394.0,0.51060151]
[1729599474501,0.64093297,67395.0,67394.0,0.51060151]
[1729599474715,0.64083297,67395.0,67394.0,0.51060151]
[1729599474972,0.80435253,67395.0,67394.0,0.51060151]
[1729599475186,0.91509594,67395.0,67394.0,0.51060151]
[1729599475401,0.91449594,67395.0,67394.0,0.51060151]
[1729599475619,1.00020063,67395.0,67394.0,0.30286951]
[1729599475839,0.89195272,67395.0,67394.0,0.30286951]
[1729599476052,0.89195272,67395.0,67394.0,0.29392]
[1729599476360,0.80335253,67395.0,67394.0,0.204892]
[1729599476589,0.80335253,67395.0,67387.0,0.001652]
[1729599476590,0.272794,67388.0,67387.0,0.001652]
[1729599476807,0.6423602,67388.0,67387.0,0.001652]
[1729599477029,0.6423602,67388.0,67387.0,0.01696971]
[1729599477030,0.74922342,67388.0,67387.0,0.01696971]
[1729599477273,0.74922342,67388.0,67381.0,0.001678]
[1729599477274,0.0009,67385.0,67381.0,0.001678]
[1729599477492,0.0008,67386.0,67381.0,0.001678]
[1729599477493,0.48730282,67382.0,67381.0,0.001678]
[1729599477723,0.65155022,67382.0,67381.0,0.001678]
[1729599477943,0.80030937,67382.0,67381.0,0.001678]
[1729599478381,0.80030937,67382.0,67380.0,1e-06]
[1729599478382,0.271009,67381.0,67380.0,1e-06]
[1729599478616,0.54506542,67381.0,67380.0,1e-06]
[1729599478854,0.54486542,67381.0,67380.0,1e-06]
[1729599479072,0.54476542,67381.0,67380.0,1e-06]
[1729599479292,0.58311555,67381.0,67380.0,1e-06]
[1729599479509,0.67156656,67381.0,67380.0,1e-06]
[1729599479962,0.67157134,67381.0,67380.0,1e-06]
[1729599480224,0.84856836,67381.0,67380.0,1e-06]
[1729599480931,0.38115891,67380.0,67379.0,9e-08]
[1729599481140,0.69592657,67380.0,67379.0,9e-08]
[1729599481646,0.67373303,67380.0,67379.0,9e-08]
[1729599482136,0.67373303,67380.0,67358.0,0.1721]
[1729599482137,0.271442,67366.0,67358.0,0.1721]
[1729599482372,0.34992208,67366.0,67358.0,0.1721]
[1729599482624,0.34992208,67366.0,67365.0,0.03241607]
[1729599482834,0.34992208,67366.0,67365.0,0.009152]
[1729599483764,0.37970091,67361.0,67360.0,0.00168]
[1729599484050,0.45528891,67361.0,67360.0,0.00168]
[1729599484497,0.56353682,67361.0,67360.0,0.00168]
[1729599485440,0.57003682,67361.0,67360.0,1e-06]
[1729599485895,0.57003682,67361.0,67348.0,0.00168]
[1729599485896,0.25672791,67349.0,67348.0,0.00168]
[1729599486145,0.37972791,67349.0,67348.0,0.00168]
[1729599486404,0.54923382,67349.0,67348.0,0.00168]
[1729599487311,0.54923382,67349.0,67348.0,0.00268]
[1729599487551,0.58549159,67349.0,67348.0,0.00268]
[1729599487764,0.58549159,67349.0,67348.0,0.00168]
[1729599488017,0.58849159,67349.0,67348.0,0.00168]
[1729599488245,0.58549159,67349.0,67348.0,0.00168]
[1729599488694,0.56023382,67349.0,67348.0,0.00268]
[1729599488944,0.58549159,67349.0,67348.0,0.00168]
[1729599489396,0.58549159,67349.0,67348.0,1e-06]
[1729599489397,0.71880016,67349.0,67348.0,1e-06]
[1729599489620,0.89390493,67349.0,67348.0,1e-06]
[1729599490291,1.04736408,67349.0,67348.0,1e-06]
[1729599490508,0.7202314,67349.0,67348.0,1e-06]
[1729599490743,0.123,67340.0,67337.0,0.00168]
[1729599490954,0.271504,67338.0,67337.0,0.00168]
[1729599491178,0.44107034,67338.0,67337.0,0.00168]
[1729599493684,0.44507034,67338.0,67337.0,0.00168]
[1729599494160,0.44107034,67338.0,67337.0,0.00168]
[1729599494601,0.44707034,67338.0,67337.0,0.00168]
[1729599494814,0.46965369,67338.0,67337.0,0.00168]
[1729599495024,0.47165369,67338.0,67337.0,0.00168]
[1729599498224,0.47781722,67338.0,67337.0,0.00168]
[1729599499566,0.47781722,67338.0,67325.0,0.31732542]
[1729599499567,0.271524,67329.0,67325.0,0.22272542]
[1729599499772,0.3580839,67329.0,67325.0,0.22272542]
[1729599500459,0.3580839,67329.0,67326.0,0.00918]
[1729599500654,0.3590839,67329.0,67328.0,0.00868]
[1729599500858,0.35890526,67329.0,67328.0,0.00868]
[1729599501335,0.35990526,67329.0,67328.0,0.01568]
[1729599503130,0.27334536,67329.0,67328.0,0.01498]
[1729599503369,0.27334536,67329.0,67328.0,0.01478]
[1729599503828,0.27334536,67329.0,67328.0,0.01468]
[1729599504056,0.27334536,67329.0,67328.0,0.01448]
[1729599504277,0.27334536,67329.0,67328.0,0.01388]
[1729599504513,0.40674803,67329.0,67328.0,0.01388]
[1729599504734,0.40674803,67329.0,67328.0,0.01378]
[1729599505169,0.40674803,67329.0,67328.0,0.01308]
[1729599505384,0.40674803,67329.0,67328.0,0.01298]
[1729599505601,0.40674803,67329.0,67328.0,0.01278]
[1729599506065,0.40674803,67329.0,67328.0,0.01228]
[1729599506290,0.40674803,67329.0,67328.0,0.01198]
[1729599506741,0.40674803,67329.0,67328.0,0.01188]
[1729599507036,0.40674803,67329.0,67328.0,0.01148]
[1729599507267,0.40674803,67329.0,67328.0,0.01098]
[1729599507479,0.40674803,67329.0,67328.0,0.01088]
[1729599507921,0.40674803,67329.0,67328.0,0.012432]
[1729599508146,0.41293799,67329.0,67328.0,0.012332]
[1729599508613,0.49393799,67329.0,67328.0,0.012332]
[1729599509068,0.41193799,67329.0,67328.0,0.005332]
[1729599509535,0.41193799,67329.0,67328.0,0.001652]
[1729599509757,0.41243799,67329.0,67328.0,0.002652]
[1729599509993,0.41093799,67329.0,67328.0,0.002652]
[1729599510434,0.41093799,67329.0,67328.0,0.001652]
[1729599510652,0.41093799,67329.0,67328.0,0.002652]
[1729599510894,0.41693799,67329.0,67328.0,0.002652]
[1729599511114,0.42193799,67329.0,67328.0,0.002652]
[1729599511576,0.41693799,67329.0,67328.0,0.002652]
[1729599511803,0.42293799,67329.0,67328.0,0.003652]
[1729599512289,0.42443799,67329.0,67328.0,0.003652]
[1729599512706,0.44189434,67327.0,67326.0,1e-06]
[1729599513630,0.44109434,67327.0,67326.0,1e-06]
[1729599514114,0.44509434,67327.0,67326.0,1e-06]
[1729599514599,0.44909434,67327.0,67326.0,1e-06]
[1729599519127,0.44509434,67327.0,67326.0,1e-06]
[1729599519390,0.40977073,67327.0,67326.0,0.001653]
[1729599519654,0.255528,67327.0,67326.0,0.001653]
[1729599519919,0.255528,67327.0,67326.0,0.175653]
[1729599520148,0.255528,67327.0,67326.0,0.1823564]
[1729599520149,0.252528,67327.0,67326.0,0.1823564]
[1729599520633,0.248528,67327.0,67326.0,0.1823564]
[1729599520868,0.274528,67327.0,67326.0,0.33131555]
[1729599521117,0.271528,67327.0,67326.0,0.33131555]
[1729599521324,0.271528,67327.0,67326.0,0.3414755]
[1729599521555,0.3894141,67327.0,67326.0,0.3484755]
[1729599521789,0.272528,67327.0,67326.0,0.3484755]
[1729599522294,0.44109434,67327.0,67326.0,0.02151635]
[1729599522745,0.44109434,67327.0,67326.0,0.0083564]
[1729599523199,0.44209434,67327.0,67326.0,0.0183564]
[1729599523423,0.57593707,67327.0,67326.0,0.0183564]
[1729599523649,0.57493707,67327.0,67326.0,0.0083564]
[1729599524319,0.57493707,67327.0,67326.0,0.0183564]
[1729599524320,0.57593707,67327.0,67326.0,0.0183564]
[1729599524541,0.57593707,67327.0,67326.0,0.0113564]
[1729599524542,0.57493707,67327.0,67326.0,0.0113564]
[1729599525013,0.57493707,67327.0,67326.0,0.0143564]
[1729599525466,0.57493707,67327.0,67326.0,0.0113564]
[1729599525697,0.58043707,67327.0,67326.0,0.0113564]
[1729599525945,0.57643707,67327.0,67326.0,0.0113564]
[1729599526221,0.57643707,67327.0,67326.0,0.0083564]
[1729599526443,0.57643707,67327.0,67326.0,4e-07]
[1729599526700,0.81628694,67327.0,67326.0,4e-07]
[1729599526924,0.44111934,67316.0,67315.0,0.727245]
[1729599527176,0.56175551,67316.0,67315.0,0.727245]
[1729599527469,0.56325551,67316.0,67315.0,0.66175968]
[1729599527696,0.79441466,67316.0,67315.0,0.05689449]
[1729599527948,0.271559,67313.0,67312.0,4.8e-07]
[1729599528197,0.44112534,67313.0,67312.0,4.8e-07]
[1729599528434,0.59008449,67313.0,67312.0,4.8e-07]
[1729599528933,0.59008449,67313.0,67312.0,0.01020633]
[1729599529156,0.59008449,67313.0,67312.0,4.8e-07]
[1729599529393,0.27157,67308.0,67307.0,1.00009]
[1729599529634,0.24857,67308.0,67307.0,1.07579]
[1729599529867,0.41813634,67308.0,67307.0,1.07579]
[1729599530147,0.24857,67308.0,67307.0,1.07579]
[1729599530883,0.25157,67308.0,67307.0,1.07579]
[1729599531331,0.24857,67308.0,67307.0,1.07579]
[1729599531556,0.27357,67308.0,67307.0,1.07579]
[1729599532538,0.25057,67308.0,67307.0,1.22474915]
[1729599532993,0.3667655,67308.0,67307.0,1.22474915]
[1729599533214,0.3667655,67308.0,67307.0,1.22524915]
[1729599533215,0.3647655,67308.0,67307.0,1.22524915]
[1729599533435,0.3627655,67308.0,67307.0,1.22824915]
[1729599533668,0.3627655,67308.0,67307.0,1.23224915]
[1729599533923,0.3627655,67308.0,67307.0,1.22774915]
[1729599534157,0.3627655,67308.0,67307.0,1.22474915]
[1729599534390,0.3627655,67308.0,67307.0,1.00409]
[1729599534391,0.55533184,67308.0,67307.0,1.00409]
[1729599535562,0.55533184,67308.0,67307.0,1.00809]
[1729599535821,0.55533184,67308.0,67307.0,1.00009]
[1729599536057,0.55533184,67308.0,67307.0,1.00109]
[1729599536311,0.55533184,67308.0,67307.0,1.00409]
[1729599536766,0.5615037,67308.0,67307.0,1.00009]
[1729599538221,0.83581473,67308.0,67307.0,1.00009]
[1729599538474,0.7250665,67308.0,67307.0,0.94066]
[1729599538696,0.7250665,67308.0,67307.0,0.732655]
[1729599538697,0.5615037,67308.0,67307.0,0.732655]
[1729599538957,0.72801854,67308.0,67307.0,0.70294]
[1729599539188,0.72501854,67308.0,67307.0,0.70294]
[1729599539439,0.73151854,67308.0,67307.0,0.70394]
[1729599539668,0.73148518,67308.0,67307.0,0.64451]
[1729599539892,0.5665037,67308.0,67307.0,0.555365]
[1729599540142,0.5680037,67308.0,67307.0,0.555365]
[1729599540609,0.72999591,67308.0,67307.0,0.555365]
[1729599540840,0.72999591,67308.0,67307.0,0.52565]
[1729599541087,0.5715037,67308.0,67307.0,0.495935]
[1729599541334,0.6536037,67308.0,67307.0,0.495935]
[1729599541614,0.81711072,67308.0,67307.0,0.495935]
[1729599541864,0.6536037,67308.0,67307.0,0.495935]
[1729599542093,0.6536037,67308.0,67307.0,0.32145869]
[1729599542094,0.7200308,67308.0,67307.0,0.32145869]
[1729599542800,0.7200308,67308.0,67307.0,0.32311269]
[1729599543277,0.271579,67304.0,67303.0,0.05936695]
[1729599543514,0.271579,67304.0,67303.0,0.05501918]
[1729599543515,0.61071168,67304.0,67303.0,0.05501918]
[1729599543759,0.44114534,67304.0,67303.0,0.05501918]
[1729599544253,0.123,67303.0,67297.0,0.00168]
[1729599544505,0.44115834,67298.0,67297.0,0.00168]
[1729599544751,0.59011749,67298.0,67297.0,0.00168]
[1729599544992,0.42055115,67298.0,67297.0,0.00168]
[1729599545300,0.42135115,67298.0,67297.0,0.00168]
[1729599545551,0.42055115,67298.0,67297.0,0.00168]
[1729599545802,0.44115834,67298.0,67297.0,0.00168]
[1729599546056,0.248592,67298.0,67297.0,0.00168]
[1729599547006,0.248592,67298.0,67297.0,0.00268]
[1729599547007,0.255592,67298.0,67297.0,0.00268]
[1729599547235,0.40767957,67298.0,67297.0,0.00168]
[1729599549002,0.41367957,67298.0,67297.0,0.00268]
[1729599549476,0.40967957,67298.0,67297.0,0.00168]
[1729599549903,0.41167957,67298.0,67297.0,0.00168]
[1729599550128,0.40967957,67298.0,67297.0,0.00168]
[1729599550386,0.40767957,67298.0,67297.0,0.00168]
[1729599550612,0.277592,67298.0,67297.0,0.00168]
[1729599550833,0.282592,67298.0,67297.0,0.00268]
[1729599551056,0.2886367,67298.0,67297.0,0.00268]
[1729599551964,0.2836367,67298.0,67297.0,0.00168]
[1729599552199,0.39515197,67298.0,67297.0,0.00168]
[1729599552412,0.40015197,67298.0,67297.0,0.00168]
[1729599552653,0.39715197,67298.0,67297.0,0.00168]
[1729599552899,0.39515197,67298.0,67297.0,0.00168]
[1729599553861,0.39715197,67298.0,67297.0,0.00168]
[1729599555255,0.39915197,67298.0,67297.0,0.00168]
[1729599556844,0.44331749,67298.0,67297.0,0.00168]
[1729599557058,0.41415197,67298.0,67297.0,0.00168]
[1729599557286,0.45831749,67298.0,67297.0,0.00168]
[1729599557501,0.41415197,67298.0,67297.0,0.00168]
[1729599557728,0.005,67293.0,67292.0,0.05999999]
[1729599557953,0.44616934,67293.0,67292.0,0.05999999]
[1729599558700,0.45616934,67293.0,67292.0,0.05999999]
[1729599559139,0.45616934,67293.0,67292.0,0.06299999]
[1729599559389,0.45616934,67293.0,67292.0,0.06599999]
[1729599559644,0.60512849,67293.0,67292.0,0.06599999]
[1729599560078,0.286603,67293.0,67292.0,0.06299999]
[1729599560513,0.291603,67293.0,67292.0,0.06399999]
[1729599561626,0.46116934,67293.0,67292.0,0.06099999]
[1729599561845,0.58009341,67293.0,67292.0,0.06099999]
[1729599562081,0.58509341,67293.0,67292.0,0.06099999]
[1729599564891,0.58509341,67293.0,67285.0,0.0175898]
[1729599564892,0.286619,67286.0,67285.0,0.0175898]
[1729599565122,0.57416584,67286.0,67285.0,0.0175898]
[1729599566065,0.57416584,67286.0,67285.0,0.0195898]
[1729599566287,0.56416584,67286.0,67285.0,0.0215898]
[1729599566512,0.57416584,67286.0,67285.0,0.0215898]
[1729599567466,0.57566584,67286.0,67285.0,0.0215898]
[1729599567740,0.57566584,67286.0,67282.0,0.05999999]
[1729599567741,0.015,67281.0,67265.0,0.02326924]
[1729599567981,0.45619634,67281.0,67264.0,0.0825]
[1729599568232,0.62576268,67281.0,67264.0,0.0825]
[1729599568506,0.62576268,67281.0,67280.0,1.942226]
[1729599568731,0.45619634,67281.0,67280.0,1.853045]
[1729599568946,0.60515549,67281.0,67280.0,1.830164]
[1729599569168,0.61215549,67281.0,67280.0,1.830164]
[1729599569392,0.65631903,67281.0,67280.0,1.828164]
[1729599569608,0.61215549,67281.0,67280.0,1.828164]
[1729599569826,0.61615549,67281.0,67280.0,1.829164]
[1729599570278,0.67232155,67281.0,67280.0,1.829164]
[1729599570492,0.67232155,67281.0,67280.0,1.734687]
[1729599570493,0.67233406,67281.0,67280.0,1.734687]
[1729599570708,0.62815549,67281.0,67280.0,1.734687]
[1729599571199,0.30963,67281.0,67280.0,1.734687]
[1729599571446,0.19963,67281.0,67280.0,1.734687]
[1729599572140,0.19463,67281.0,67280.0,1.734687]
[1729599572354,0.19463,67281.0,67280.0,1.831287]
[1729599572571,0.19463,67281.0,67280.0,1.912587]
[1729599572812,0.29463,67281.0,67280.0,1.912587]
[1729599573249,0.29963,67281.0,67280.0,1.912587]
[1729599574407,0.27163,67281.0,67280.0,1.912587]
[1729599575765,0.27163,67281.0,67280.0,1.912087]
[1729599575975,0.27163,67281.0,67280.0,1.912587]
[1729599577054,0.27163,67281.0,67280.0,1.912087]
[1729599578407,0.27163,67281.0,67280.0,1.912587]
[1729599579378,0.262284,67281.0,67280.0,2.06004615]
[1729599579611,0.250284,67281.0,67280.0,2.06054615]
[1729599579850,0.254284,67281.0,67280.0,2.06004615]
[1729599580547,0.30139521,67281.0,67280.0,2.06004615]
[1729599580781,0.254284,67281.0,67280.0,2.06054615]
[1729599581012,0.252284,67281.0,67280.0,2.06054615]
[1729599581255,0.250284,67281.0,67280.0,2.06154615]
[1729599581481,0.250284,67281.0,67280.0,2.06254615]
[1729599584423,0.250284,67281.0,67280.0,2.06204615]
[1729599584884,0.250284,67281.0,67280.0,2.06254615]
[1729599585797,0.250284,67281.0,67280.0,2.06204615]
[1729599586015,0.250284,67281.0,67280.0,2.06254615]
[1729599588214,0.250284,67281.0,67280.0,1.33053915]
[1729599589637,0.250284,67281.0,67280.0,1.345042]
[1729599590342,0.250284,67281.0,67280.0,1.344542]
[1729599590558,0.38503866,67281.0,67280.0,1.344542]
[1729599590814,0.250284,67281.0,67280.0,1.344542]
[1729599591228,0.29458405,67281.0,67280.0,1.344542]
[1729599591655,0.29458405,67281.0,67280.0,1.33003915]
[1729599591867,0.29458405,67281.0,67280.0,1.33053915]
[1729599592313,0.250284,67281.0,67280.0,1.33053915]
[1729599595159,0.29459385,67281.0,67280.0,1.33053915]
[1729599595371,0.250284,67281.0,67280.0,1.33053915]
[1729599595612,0.250284,67281.0,67280.0,1.18108]
[1729599595613,0.39168955,67281.0,67280.0,1.18108]
[1729599595835,0.43600517,67281.0,67280.0,1.08448]
[1729599596051,0.39168955,67281.0,67280.0,1.08498]
[1729599596481,0.43600691,67281.0,67280.0,1.00368]
[1729599596691,0.436006,67281.0,67280.0,1.00368]
[1729599596932,0.45815433,67281.0,67280.0,1.00368]
[1729599598440,0.45815433,67281.0,67280.0,1.00418]
[1729599598685,0.21674878,67281.0,67280.0,1.24543915]
[1729599598902,0.150284,67281.0,67280.0,1.24543915]
[1729599599110,0.19460922,67281.0,67280.0,1.24543915]
[1729599599328,0.150284,67281.0,67280.0,1.24543915]
[1729599599542,0.19460922,67281.0,67280.0,1.24543915]
[1729599601264,0.19463234,67281.0,67280.0,1.24543915]
[1729599602406,0.28051502,67281.0,67280.0,1.24543915]
[1729599602623,0.40573302,67281.0,67280.0,1.00368]
[1729599603050,0.40573302,67281.0,67280.0,1.00418]
[1729599603330,0.150284,67281.0,67280.0,1.00418]
[1729599604844,0.150284,67281.0,67280.0,1.00368]
[1729599606000,0.19464176,67281.0,67280.0,1.00368]
[1729599606247,0.178284,67281.0,67280.0,1.00368]
[1729599606516,0.34202758,67281.0,67280.0,1.00368]
[1729599606730,0.84920351,67281.0,67280.0,1.00368]
[1729599606968,0.76055307,67281.0,67280.0,1.00368]
[1729599607182,0.84225307,67281.0,67280.0,1.00368]
[1729599607650,0.85225307,67281.0,67280.0,1.00368]
[1729599607872,0.85225307,67281.0,67280.0,1.00268]
[1729599608091,1.02331941,67281.0,67280.0,1.00268]
[1729599608312,1.02331941,67281.0,67280.0,0.98251262]
[1729599608313,1.27107856,67281.0,67280.0,0.98251262]
[1729599608530,1.26957856,67281.0,67280.0,0.98251262]
[1729599608735,1.27157856,67281.0,67280.0,0.9516549]
[1729599608951,1.27307856,67281.0,67280.0,0.53721216]
[1729599609173,1.27107856,67281.0,67280.0,0.53721216]
[1729599609384,1.27107856,67281.0,67280.0,0.51721216]
[1729599609655,1.29407856,67281.0,67280.0,0.42750216]
[1729599609895,1.29407856,67281.0,67280.0,0.15839816]
[1729599610094,1.29407856,67281.0,67280.0,0.12767116]
[1729599610095,1.52344356,67281.0,67280.0,0.12767116]
[1729599610306,1.52344356,67281.0,67280.0,0.11699752]
[1729599610527,1.53544356,67281.0,67280.0,0.11799752]
[1729599610743,1.53544356,67281.0,67280.0,0.11149757]
[1729599610961,1.53394356,67281.0,67280.0,0.11149757]
[1729599611190,0.82509392,67281.0,67280.0,0.11149757]
[1729599611629,0.81309392,67281.0,67280.0,0.11049757]
[1729599611854,0.82509392,67281.0,67280.0,0.11049757]
[1729599612082,0.0165,67272.0,67269.0,0.00084]
[1729599612302,0.55000561,67272.0,67269.0,0.00084]
[1729599612536,0.76747459,67272.0,67269.0,0.00084]
[1729599612767,0.93704093,67272.0,67269.0,0.00084]
[1729599613008,1.02566913,67272.0,67269.0,0.00084]
[1729599613252,0.28665,67272.0,67269.0,0.00084]
[1729599613692,0.45021736,67272.0,67269.0,0.00084]
[1729599613938,0.45021783,67272.0,67269.0,0.00084]
[1729599614157,0.45022111,67272.0,67269.0,0.00084]
[1729599614397,0.45019843,67272.0,67269.0,0.00084]
[1729599614636,0.60715774,67272.0,67269.0,0.00084]
[1729599615326,0.75611689,67272.0,67269.0,0.00084]
[1729599615548,1.0466364,67272.0,67269.0,0.00084]
[1729599615768,1.0546364,67272.0,67269.0,0.00084]
[1729599616009,0.94381689,67272.0,67269.0,0.00084]
[1729599616218,0.93581689,67272.0,67269.0,0.00084]
[1729599616433,1.04802449,67272.0,67271.0,9.9e-07]
[1729599616639,1.04652449,67272.0,67271.0,9.9e-07]
[1729599616856,0.94281689,67272.0,67271.0,9.9e-07]
[1729599617290,1.05349915,67272.0,67271.0,9.9e-07]
[1729599618387,0.94882433,67272.0,67271.0,9.9e-07]
[1729599619218,0.028,67261.0,67260.0,0.06083999]
[1729599619438,0.276674,67261.0,67260.0,0.06083999]
[1729599620479,0.276674,67261.0,67260.0,0.06383999]
[1729599621320,0.276674,67261.0,67260.0,0.06683999]
[1729599621950,0.276674,67261.0,67260.0,0.06383999]
[1729599622164,0.276674,67261.0,67260.0,0.06083999]
[1729599622360,0.276674,67261.0,67260.0,0.06183999]
[1729599622577,0.276674,67261.0,67260.0,0.06283999]
[1729599623012,0.276674,67261.0,67260.0,0.06183999]
[1729599623230,0.3965431,67261.0,67260.0,0.06183999]
[1729599623458,0.3965431,67261.0,67260.0,0.05568999]
[1729599624146,0.3965431,67261.0,67260.0,0.05468999]
[1729599625043,0.3985431,67261.0,67260.0,0.05468999]
[1729599625888,0.3985431,67261.0,67260.0,0.06068999]
[1729599628101,0.40451593,67261.0,67260.0,0.06068999]
[1729599633495,0.40451593,67261.0,67260.0,0.00684]
[1729599635527,0.40451593,67261.0,67260.0,1e-06]
[1729599635528,0.72454142,67261.0,67260.0,1e-06]
[1729599635754,0.015,67251.0,67250.0,0.05999999]
[1729599635987,0.45626234,67251.0,67250.0,0.05999999]
[1729599636499,0.52253314,67251.0,67250.0,0.05999999]
[1729599636748,0.55626234,67251.0,67250.0,0.05999999]
[1729599637651,0.55626234,67251.0,67250.0,0.06082699]
[1729599637888,0.70522149,67251.0,67250.0,0.06082699]
[1729599638330,0.74939314,67251.0,67250.0,0.06082699]
[1729599638566,0.82857314,67251.0,67250.0,0.06082699]
[1729599638949,0.248696,67251.0,67250.0,0.23992699]
[1729599639194,0.1,67251.0,67250.0,0.38938614]
[1729599639423,0.109,67251.0,67250.0,0.38938614]
[1729599639892,0.00962683,67261.0,67250.0,0.38938614]
[1729599640121,0.00962683,67261.0,67260.0,0.0005]
[1729599640122,0.15830083,67261.0,67260.0,0.0005]
[1729599640356,0.15830083,67261.0,67260.0,0.0808]
[1729599640651,0.25830083,67261.0,67260.0,0.0808]
[1729599640888,0.00962683,67261.0,67260.0,0.1724]
[1729599641132,0.15830083,67261.0,67260.0,0.1724]
[1729599642079,0.15830083,67261.0,67260.0,0.1774]
[1729599642080,0.15930083,67261.0,67260.0,0.1774]
[1729599642530,0.15930083,67261.0,67260.0,0.15395915]
[1729599642531,0.23469881,67261.0,67260.0,0.15395915]
[1729599642806,0.33469881,67261.0,67260.0,0.15395915]
[1729599644020,0.33469881,67261.0,67260.0,0.005]
[1729599644021,0.35769881,67261.0,67260.0,0.005]
[1729599645188,0.148685,67256.0,67255.0,0.0005]
[1729599645420,0.148687,67255.0,67254.0,0.0803]
[1729599648237,0.148687,67255.0,67254.0,0.0808]
[1729599648493,0.148687,67255.0,67254.0,0.0838]
[1729599650411,0.148687,67255.0,67254.0,0.0833]
[1729599650627,0.148687,67255.0,67254.0,0.084126]
[1729599650838,0.2726674,67255.0,67254.0,0.084126]
[1729599651283,0.2726674,67255.0,67254.0,0.084626]
[1729599653682,0.148687,67255.0,67254.0,0.084626]
[1729599654366,0.148687,67255.0,67254.0,0.23358515]
[1729599654676,0.001652,67258.0,67257.0,0.0005]
[1729599654677,0.150333,67258.0,67257.0,0.0005]
[1729599654889,0.150333,67258.0,67257.0,0.14945915]
[1729599656211,0.150333,67258.0,67257.0,0.14812915]
[1729599656874,0.150333,67258.0,67257.0,0.14912915]
[1729599657316,0.150333,67258.0,67257.0,0.23952915]
[1729599657540,0.150333,67258.0,67257.0,0.49019549]
[1729599657757,0.150333,67258.0,67257.0,0.48919549]
[1729599658012,0.150333,67258.0,67257.0,0.32162915]
[1729599658499,0.150333,67258.0,67257.0,0.31962915]
[1729599659895,0.150333,67258.0,67257.0,0.32262915]
[1729599660611,0.150333,67258.0,67257.0,0.33314035]
[1729599660848,0.150333,67258.0,67257.0,0.33714035]
[1729599661981,0.41989934,67258.0,67257.0,0.0175112]
[1729599662280,0.48642543,67258.0,67257.0,0.0175112]
[1729599662511,0.70028408,67258.0,67257.0,0.004]
[1729599662757,0.7531324,67258.0,67257.0,0.004]
[1729599663210,0.248687,67255.0,67254.0,0.000826]